bitfinex/quotes_ETHUSD_20250129
["timestamp","ask_amount","ask_price","bid_price","bid_amount"]
[1738166449907,3.22706,3098.8,3098.5,0.06246847]
[1738166450711,3.22711,3098.8,3098.5,0.06246847]
[1738166451660,3.22674,3099.2,3098.6,0.7924]
[1738166451836,3.22674,3099.2,3098.7,3.22706]
[1738166452152,3.22674,3099.2,3098.7,3.28939229]
[1738166453590,3.22645,3099.4,3099.0,0.7507]
[1738166453759,3.22654,3099.3,3099.1,0.06205999]
[1738166455111,3.22663,3099.2,3099.1,0.06205999]
[1738166455409,3.26696474,3099.2,3098.5,4.03744]
[1738166455566,3.22687,3099.0,3098.5,4.03744]
[1738166455970,3.22687,3099.0,3098.5,4.0374]
[1738166457059,3.22674,3099.1,3098.6,3.22725]
[1738166458964,0.6508211,3099.4,3098.7,3.22709]
[1738166459164,3.8773211,3099.4,3098.9,0.803]
[1738166459604,3.2265,3099.4,3098.9,4.02993]
[1738166459811,3.22607,3099.8,3099.0,0.58226777]
[1738166460016,3.22607,3099.8,3099.3,3.22648]
[1738166460304,3.69037269,3099.9,3099.4,0.8078]
[1738166460469,3.5227,3099.9,3099.4,0.84006235]
[1738166460814,3.5227,3099.9,3099.8,4.60381]
[1738166461182,3.5227,3099.9,3099.8,4.66506702]
[1738166461913,3.5227,3099.9,3099.8,7.66506702]
[1738166462113,3.5227,3099.9,3099.8,8.04708826]
[1738166462507,3.5227,3099.9,3099.8,13.42708826]
[1738166463197,3.5227,3099.9,3099.8,13.78608826]
[1738166464624,1.90974,3099.9,3099.8,13.80108826]
[1738166464808,0.6373234,3101.1,3100.9,0.8151]
[1738166465127,0.6373234,3101.1,3101.0,0.06020637]
[1738166465325,3.22458,3101.2,3101.0,0.06020637]
[1738166465487,3.22441,3101.4,3101.0,0.06020637]
[1738166465712,3.22441,3101.4,3100.7,3.22498]
[1738166465713,3.22445,3101.3,3100.7,3.22498]
[1738166465931,3.22455,3101.2,3101.1,0.06013839]
[1738166466241,3.93305072,3101.2,3101.1,0.06013839]
[1738166466527,0.70850072,3101.2,3100.5,0.358]
[1738166466727,3.93305072,3101.2,3101.1,0.06013839]
[1738166467025,3.22492,3100.9,3100.5,0.358]
[1738166467485,3.22492,3100.9,3100.6,0.06040329]
[1738166468327,0.8081,3101.1,3100.6,0.06040329]
[1738166468499,3.22459,3101.2,3100.6,3.28551329]
[1738166469184,3.22472,3101.1,3100.6,0.06040329]
[1738166469384,3.22472,3101.1,3100.6,3.28554329]
[1738166469597,0.78793872,3101.2,3100.7,0.7803]
[1738166469799,3.22467,3101.1,3100.8,0.06035419]
[1738166469997,0.78480854,3101.2,3100.9,3.22481]
[1738166470203,3.22445,3101.3,3101.0,0.06021822]
[1738166470489,0.46547972,3101.2,3100.7,4.00529]
[1738166470715,3.22445,3101.3,3101.1,0.06015024]
[1738166470900,3.22445,3101.3,3100.7,4.00529]
[1738166471079,3.22445,3101.3,3101.2,0.06008226]
[1738166471280,3.22445,3101.3,3100.7,4.00529]
[1738166471808,3.22445,3101.3,3100.8,0.06035419]
[1738166472024,4.01235372,3101.3,3100.7,4.00529]
[1738166472233,4.01235372,3101.3,3100.9,0.06028621]
[1738166472430,4.01235372,3101.3,3100.8,0.06035419]
[1738166472631,3.2247,3101.1,3101.0,0.06021822]
[1738166472947,3.2247,3101.1,3100.9,0.06028621]
[1738166473130,3.2247,3101.1,3100.8,0.358]
[1738166473522,3.2247,3101.1,3100.9,0.05957487]
[1738166473931,3.22476,3101.0,3100.9,0.05957487]
[1738166474236,3.2247,3101.1,3100.9,0.05957487]
[1738166474937,3.2247,3101.1,3100.8,0.358]
[1738166475122,3.2247,3101.1,3100.9,0.05957487]
[1738166475322,3.94840837,3101.1,3100.9,0.05957487]
[1738166475946,0.63604718,3101.4,3100.9,0.05957487]
[1738166476124,3.22448,3101.3,3100.9,0.05957487]
[1738166476649,3.22456,3101.2,3100.9,0.05957487]
[1738166477534,6.44921,3101.2,3100.9,0.05957487]
[1738166477712,3.22456,3101.2,3100.9,0.05957487]
[1738166477913,0.322456,3101.1,3100.9,0.05957487]
[1738166478713,3.22476,3101.0,3100.7,0.358]
[1738166478918,1.18086397,3101.1,3100.4,0.7536]
[1738166478919,3.22497,3100.8,3100.4,0.7536]
[1738166479114,3.22547,3100.4,3100.1,5.38]
[1738166479351,3.22547,3100.4,3099.6,3.22614]
[1738166479352,3.22573,3100.1,3099.7,0.7536]
[1738166479555,3.22573,3100.1,3099.6,0.358]
[1738166479556,0.04032298,3100.0,3099.6,0.358]
[1738166479860,3.22613,3099.7,3099.2,0.8286]
[1738166480050,3.22613,3099.7,3099.2,1.1866]
[1738166480246,3.22593,3099.9,3099.3,3.22646]
[1738166480566,5.37,3100.2,3099.7,3.22605]
[1738166480726,5.37,3100.2,3099.8,0.8246]
[1738166480924,8.59567,3100.2,3099.8,0.8246]
[1738166481447,3.22583,3100.0,3099.5,0.7668]
[1738166481622,3.22583,3100.0,3099.5,3.9931]
[1738166481824,4.40798,3100.0,3099.5,0.7668]
[1738166482028,3.22611,3099.7,3099.4,35.0]
[1738166482226,3.22643,3099.4,3099.0,0.358]
[1738166482641,6.45293,3099.4,3099.0,35.358]
[1738166482925,3.22672,3099.2,3099.0,35.358]
[1738166483169,3.22672,3099.2,3099.0,0.358]
[1738166483835,3.22672,3099.2,3098.8,38.3208]
[1738166484271,3.22672,3099.2,3098.8,3.3208]
[1738166484471,3.22685,3099.0,3098.8,2.554]
[1738166484966,3.22672,3099.2,3098.8,2.554]
[1738166485982,3.98095,3099.4,3098.8,5.78103]
[1738166486129,0.65584456,3099.3,3098.9,3.22694]
[1738166486473,3.88244456,3099.3,3098.8,2.912]
[1738166486633,3.2266,3099.3,3098.8,2.912]
[1738166486969,3.22645,3099.4,3098.9,3.22687]
[1738166487334,3.22607,3099.8,3099.2,3.22657]
[1738166487633,0.63318917,3099.8,3098.9,3.22689]
[1738166487826,3.22634,3099.5,3098.9,3.22689]
[1738166488027,3.22641,3099.5,3099.0,35.0]
[1738166488283,6.45281,3099.5,3099.0,35.0]
[1738166488464,3.2264,3099.5,3099.0,35.0]
[1738166488670,3.2264,3099.5,3099.0,38.22684]
[1738166488888,3.22618,3099.7,3099.0,38.22684]
[1738166489032,3.22596,3099.9,3099.2,0.7864]
[1738166489364,3.22583,3100.0,3099.5,3.22631]
[1738166489563,3.22603,3099.8,3099.3,3.77646]
[1738166489865,3.22591,3099.9,3099.3,3.77646]
[1738166490068,6.4519,3099.9,3099.3,3.77646]
[1738166490365,3.22591,3099.9,3099.4,0.05744489]
[1738166490531,3.22591,3099.9,3099.4,3.74589538]
[1738166490731,3.22586,3100.0,3099.4,3.74589538]
[1738166491329,3.22586,3100.0,3099.4,6.97226538]
[1738166491535,3.22586,3100.0,3099.4,3.74584538]
[1738166491841,0.8203,3100.7,3099.8,0.55]
[1738166492054,3.22485,3101.0,3100.1,3.22567]
[1738166492260,3.87258186,3100.9,3100.4,3.22534]
[1738166492441,4.04515,3101.0,3100.4,3.22534]
[1738166492766,3.22488,3100.9,3100.5,0.05668869]
[1738166493672,3.22485,3101.0,3100.5,3.28196869]
[1738166494285,6.4497,3101.0,3100.5,3.74750111]
[1738166494634,3.22485,3101.0,3100.5,0.05668869]
[1738166494852,3.22497,3100.8,3100.5,0.05668869]
[1738166496626,3.22518,3100.6,3100.5,0.05668869]
[1738166496829,4.02103,3100.8,3100.3,0.358]
[1738166497039,3.22503,3100.8,3100.4,0.05629583]
[1738166498088,3.85386366,3101.2,3100.6,0.7882]
[1738166498238,3.22475,3101.1,3100.6,0.7882]
[1738166498495,3.22475,3101.1,3100.7,0.05608788]
[1738166499089,3.22477,3101.0,3100.7,0.05608788]
[1738166500037,3.85386366,3101.2,3100.7,0.05608788]
[1738166500196,3.22441,3101.4,3100.9,3.2248]
[1738166500400,3.22441,3101.4,3101.0,0.05582485]
[1738166500901,3.22404,3101.7,3101.2,0.796]
[1738166501231,3.7971,3102.1,3101.3,0.05541556]
[1738166501436,3.22428,3101.5,3101.3,0.05541556]
[1738166501636,3.90950329,3101.4,3101.3,0.05541556]
[1738166501839,0.68515329,3101.4,3100.9,35.0]
[1738166502009,3.22447,3101.3,3100.9,35.0]
[1738166502222,3.22447,3101.3,3100.7,3.58199]
[1738166502816,3.22447,3101.3,3100.8,35.0]
[1738166503014,3.22437,3101.4,3100.8,38.2249]
[1738166503211,3.22446,3101.3,3100.7,3.58199]
[1738166503708,3.22478,3101.0,3100.7,0.357]
[1738166503907,0.322446,3101.3,3100.7,0.357]
[1738166503908,3.22476,3101.1,3100.7,0.357]
[1738166504609,3.22494,3100.9,3100.7,0.357]
[1738166505028,3.22494,3100.9,3100.6,0.7856]
[1738166505243,3.22476,3101.1,3100.6,0.7856]
[1738166505448,3.22451,3101.3,3100.7,3.28041373]
[1738166505615,3.22446,3101.3,3100.8,3.77487]
[1738166505811,3.22476,3101.0,3100.9,0.05528254]
[1738166506010,3.22489,3100.9,3100.6,1.1426]
[1738166506366,3.22466,3101.1,3100.7,0.05542639]
[1738166506564,3.22493,3100.9,3100.7,0.05542639]
[1738166506912,3.22478,3101.0,3100.7,0.05542639]
[1738166507108,3.22487,3100.9,3100.7,0.05542639]
[1738166508379,3.22497,3100.8,3100.7,0.05542639]
[1738166508529,3.22497,3100.8,3100.4,0.357]
[1738166508730,3.22487,3100.9,3100.5,0.05557814]
[1738166509610,3.22469,3101.1,3100.5,0.49918595]
[1738166509810,3.22469,3101.1,3100.6,0.7591]
[1738166510010,3.22469,3101.1,3100.7,0.05546182]
[1738166510262,3.22469,3101.1,3100.7,35.05546182]
[1738166510761,3.22477,3101.0,3100.7,0.05546182]
[1738166510963,3.22489,3100.9,3100.7,0.05546182]
[1738166511135,6.44984,3100.9,3100.7,0.05546182]
[1738166511513,6.44984,3100.9,3100.6,35.0]
[1738166511754,3.22476,3101.0,3100.7,0.05544608]
[1738166511957,3.22487,3100.9,3100.4,1.1321]
[1738166512157,3.22487,3100.9,3100.5,0.05558208]
[1738166512511,3.22476,3101.0,3100.5,0.05558208]
[1738166512716,3.22457,3101.2,3100.6,4.36899]
[1738166512916,3.22457,3101.2,3100.7,3.22503]
[1738166512917,3.22456,3101.2,3100.7,3.22503]
[1738166513262,3.22456,3101.2,3100.7,3.2804997]
[1738166513706,3.2244,3101.4,3100.8,3.22497]
[1738166514012,3.2244,3101.4,3101.0,0.7978]
[1738166514309,3.2244,3101.4,3101.1,0.05519775]
[1738166514516,4.03825,3101.6,3101.1,0.05519775]
[1738166514715,4.03825,3101.6,3101.1,3.68758352]
[1738166514716,3.22415,3101.6,3101.1,3.68758352]
[1738166515265,6.44836,3101.6,3101.1,3.68758352]
[1738166515615,3.2243,3101.5,3101.1,0.05519775]
[1738166515795,3.22415,3101.6,3101.1,0.05519775]
[1738166516015,3.22415,3101.6,3101.1,3.27984775]
[1738166516676,3.22426,3101.5,3101.1,0.05519775]
[1738166517194,3.22415,3101.6,3101.1,3.27983775]
[1738166517573,3.22398,3101.8,3101.2,0.7628]
[1738166517774,3.22398,3101.8,3101.3,0.0550618]
[1738166518025,3.22398,3101.8,3101.2,35.7628]
[1738166518334,3.22388,3101.9,3101.3,3.27931878]
[1738166518881,3.22395,3101.8,3101.3,0.05495878]
[1738166519276,3.22395,3101.8,3101.2,38.98734]
[1738166519527,3.22395,3101.8,3101.4,0.05453657]
[1738166519727,3.22395,3101.8,3101.3,0.05460453]
[1738166519894,3.22395,3101.8,3101.5,0.05446861]
[1738166520100,3.22395,3101.8,3101.2,38.98734]
[1738166520101,3.22395,3101.8,3101.4,0.05453657]
[1738166520421,3.22395,3101.8,3101.5,0.05446861]
[1738166520576,3.22395,3101.8,3101.3,3.2244]
[1738166520779,6.44795,3101.8,3101.4,0.05474193]
[1738166520984,3.2241,3101.7,3101.2,38.98729]
[1738166521181,3.22395,3101.8,3101.3,0.05480989]
[1738166521424,3.22415,3101.6,3101.3,0.357]
[1738166521628,3.22415,3101.6,3101.4,0.05474193]
[1738166522529,3.22379,3102.0,3101.4,0.05474193]
[1738166522839,3.22383,3101.9,3101.4,3.27902193]
[1738166523185,3.22383,3101.9,3101.4,0.05474193]
[1738166523436,3.2241,3101.7,3101.4,0.05474193]
[1738166523650,3.22424,3101.5,3101.4,0.05474193]
[1738166523942,3.22504,3100.8,3100.3,1.1814]
[1738166524102,3.22534,3100.5,3100.3,1.1814]
[1738166524434,3.22534,3100.5,3100.4,0.05337237]
[1738166525289,3.22534,3100.5,3100.0,4.35098]
[1738166525484,3.22465,3101.2,3100.5,0.8099]
[1738166525485,3.22478,3101.0,3100.5,0.8099]
[1738166525691,3.22487,3100.9,3100.5,0.8099]
[1738166525885,3.22478,3101.0,3100.6,0.05323636]
[1738166525886,3.22501,3100.8,3100.6,0.05323636]
[1738166526641,3.22494,3100.9,3100.6,0.05323636]
[1738166526804,3.22478,3101.0,3100.6,0.05323636]
[1738166527132,3.22459,3101.2,3100.6,3.687228]
[1738166527300,3.22447,3101.3,3100.6,3.687228]
[1738166527504,3.22457,3101.2,3100.6,3.687158]
[1738166527685,3.39174303,3101.8,3100.6,3.687158]
[1738166527686,3.22419,3101.6,3100.7,0.55]
[1738166527889,3.22434,3101.5,3101.0,3.2247]
[1738166528084,3.2241,3101.7,3101.2,0.815]
[1738166528641,3.22415,3101.6,3101.3,0.05258617]
[1738166528820,3.22415,3101.6,3101.2,0.815]
[1738166529021,3.22415,3101.6,3101.3,0.05258617]
[1738166529193,3.224,3101.8,3101.2,4.03954]
[1738166529540,3.015,3102.4,3101.4,0.55]
[1738166529541,3.22349,3102.3,3101.4,0.55]
[1738166529843,3.22349,3102.3,3101.5,4.03386025]
[1738166529995,3.22362,3102.1,3101.6,3.58112]
[1738166530191,3.22362,3102.1,3101.7,0.05231434]
[1738166530619,0.65209256,3102.2,3101.7,3.27634434]
[1738166530801,3.87562256,3102.2,3101.7,3.27634434]
[1738166531144,0.65209256,3102.2,3101.7,3.27634434]
[1738166531310,0.65209256,3102.2,3101.7,3.59881434]
[1738166531491,3.87563256,3102.2,3101.7,3.59881434]
[1738166532346,3.22354,3102.2,3101.7,3.59881434]
[1738166532544,6.44713,3102.2,3101.7,3.59881434]
[1738166532848,3.22354,3102.2,3101.7,3.59881434]
[1738166533702,6.44714,3102.2,3101.7,3.27634434]
[1738166533907,3.22354,3102.2,3101.7,3.27634434]
[1738166534858,3.22336,3102.4,3101.7,3.27634434]
[1738166535015,3.22336,3102.4,3101.8,3.22392]
[1738166535336,3.22341,3102.3,3101.9,0.05217846]
[1738166535538,3.22336,3102.4,3101.9,0.05217846]
[1738166536244,3.22336,3102.4,3101.9,3.27599846]
[1738166537604,0.64048493,3102.5,3102.0,4.0419]
[1738166537605,3.86369493,3102.5,3102.0,4.0419]
[1738166537805,3.22332,3102.4,3102.1,0.05204259]
[1738166538443,3.86369493,3102.5,3102.1,0.05204259]
[1738166538853,7.08698493,3102.5,3102.1,0.05204259]
[1738166539055,4.01527,3102.3,3102.1,0.05204259]
[1738166539222,4.01527,3102.3,3101.7,3.22399]
[1738166539539,3.22353,3102.2,3101.8,0.05204607]
[1738166540062,3.22339,3102.4,3101.9,3.27577813]
[1738166540650,3.86374493,3102.5,3101.9,3.27577813]
[1738166540651,0.64048493,3102.5,3102.1,0.7625]
[1738166540865,0.64048493,3102.5,3102.2,0.05177433]
[1738166541634,3.22332,3102.4,3102.2,0.05177433]
[1738166541927,3.22332,3102.4,3101.8,3.22383]
[1738166541928,3.22332,3102.4,3101.8,3.98633]
[1738166542128,3.22332,3102.4,3102.3,0.05170641]
[1738166542368,0.7787,3102.8,3101.8,3.98633]
[1738166542369,3.22308,3102.7,3102.1,3.2236]
[1738166542668,3.22313,3102.6,3102.2,0.05177433]
[1738166542817,3.22334,3102.4,3102.2,0.05177433]
[1738166543023,3.22334,3102.4,3101.9,3.22383]
[1738166543223,3.22334,3102.4,3102.0,0.05191019]
[1738166544070,3.22316,3102.6,3102.1,3.22361]
[1738166544420,3.22316,3102.6,3102.2,0.05194858]
[1738166545566,0.63767293,3102.7,3102.2,0.05194858]
[1738166545734,3.22279,3102.9,3102.4,3.2233]
[1738166545934,3.22279,3102.9,3102.3,0.7625]
[1738166546177,3.22305,3102.7,3102.5,0.05150517]
[1738166546322,3.2232,3102.5,3102.4,0.05157309]
[1738166546675,4.04209188,3102.6,3102.0,0.356]
[1738166546676,3.22347,3102.3,3102.0,0.356]
[1738166547369,3.22347,3102.3,3101.8,3.98638]
[1738166547370,3.22347,3102.3,3101.8,0.7625]
[1738166547581,3.22347,3102.3,3101.5,3.2242]
[1738166547582,3.22382,3102.0,3101.5,0.7625]
[1738166547776,3.22382,3102.0,3101.5,3.98669]
[1738166548329,3.22382,3102.0,3101.5,7.21088]
[1738166548530,6.44717,3102.2,3101.6,3.22413]
[1738166548761,3.22357,3102.2,3101.5,3.98669]
[1738166549165,3.22362,3102.1,3101.5,3.98669]
[1738166549645,6.44752,3102.0,3101.5,3.98669]
[1738166549858,3.22373,3102.0,3101.5,3.98669]
[1738166550578,0.8038,3102.3,3101.6,0.05209697]
[1738166550801,3.22338,3102.4,3101.9,3.2238]
[1738166550922,3.22341,3102.3,3101.7,3.22395]
[1738166551122,3.2236,3102.2,3101.7,3.27604972]
[1738166551975,3.2236,3102.2,3101.7,6.50000972]
[1738166552155,3.22342,3102.3,3101.8,3.22391]
[1738166552357,3.87349873,3102.5,3101.8,3.22391]
[1738166552539,3.87349873,3102.5,3102.0,0.7779]
[1738166552944,3.87349873,3102.5,3102.1,0.05182794]
[1738166553160,3.22326,3102.5,3102.1,0.05182794]
[1738166554152,3.22301,3102.7,3102.2,3.22346]
[1738166554357,4.01306,3102.9,3102.3,0.05169208]
[1738166554535,4.01283,3103.1,3102.5,0.751]
[1738166554842,3.22274,3103.0,3102.6,0.05145892]
[1738166555038,3.2228,3102.9,3102.6,0.05145892]
[1738166555235,3.22299,3102.7,3102.6,0.05145892]
[1738166555541,3.22299,3102.7,3102.1,3.62890279]
[1738166555542,3.2231,3102.6,3102.1,3.22358]
[1738166556240,3.22321,3102.5,3102.0,0.7917]
[1738166556635,3.22321,3102.5,3102.0,4.01536]
[1738166556872,3.22299,3102.7,3102.1,0.55]
[1738166557074,3.22299,3102.7,3102.2,3.22344]
[1738166557232,3.22299,3102.7,3102.1,3.22353]
[1738166557233,3.2231,3102.6,3102.1,3.22353]
[1738166559132,0.86499059,3102.8,3102.0,0.7917]
[1738166559309,3.22347,3102.3,3102.1,0.356]
[1738166559511,3.22352,3102.2,3102.1,0.356]
[1738166560199,0.7981,3102.3,3100.9,0.7618]
[1738166560397,3.2241,3101.7,3101.2,3.22448]
[1738166560781,0.7981,3101.8,3100.9,0.7618]
[1738166560987,3.2243,3101.5,3101.0,0.356]
[1738166561216,3.2243,3101.5,3101.0,3.58068]
[1738166561528,3.22403,3101.7,3101.2,3.22449]
[1738166562310,3.22403,3101.7,3101.0,3.58073]
[1738166562311,3.22403,3101.7,3101.1,0.8272]
[1738166562574,3.22403,3101.7,3101.1,4.0518]
[1738166562738,3.22388,3101.9,3101.2,3.22455]
[1738166562918,3.22388,3101.9,3101.4,3.22434]
[1738166563085,3.22388,3101.9,3101.2,3.22455]
[1738166563086,3.22388,3101.9,3101.2,3.22453]
[1738166563286,3.22418,3101.6,3101.1,0.8272]
[1738166563503,3.22418,3101.6,3101.1,4.05181]
[1738166565528,3.22418,3101.6,3101.2,0.0525456]
[1738166566241,3.87701315,3102.1,3101.2,0.0525456]
[1738166566242,3.22445,3101.3,3101.2,0.0525456]
[1738166566403,3.22481,3101.0,3100.6,0.356]
[1738166566594,3.22461,3101.2,3100.6,0.356]
[1738166566794,6.44924,3101.2,3100.6,3.58111]
[1738166567024,3.22461,3101.2,3100.6,0.356]
[1738166567291,3.22461,3101.2,3100.7,5.77904]
[1738166567537,3.22461,3101.2,3100.7,2.554]
[1738166567737,3.22497,3100.8,3100.7,2.554]
[1738166568383,0.8028,3101.0,3100.7,2.554]
[1738166568589,3.2247,3101.1,3100.7,2.554]
[1738166568799,3.2247,3101.1,3100.7,3.3593]
[1738166569001,6.44945,3101.1,3100.7,2.554]
[1738166569205,0.04031296,3101.0,3100.7,2.554]
[1738166569439,3.22497,3100.8,3100.7,2.554]
[1738166569640,3.22471,3101.1,3100.7,2.554]
[1738166570006,0.642082,3101.2,3100.7,2.554]
[1738166570232,0.642082,3101.2,3100.7,6.58034]
[1738166570409,3.22456,3101.2,3100.7,6.58034]
[1738166570739,0.65265974,3101.4,3100.7,6.58028]
[1738166570941,3.87707974,3101.4,3100.9,3.22486]
[1738166571592,3.22447,3101.3,3100.7,6.58028]
[1738166571953,3.22447,3101.3,3100.7,4.02628]
[1738166573147,3.87700974,3101.4,3100.9,3.22486]
[1738166573354,3.87700974,3101.4,3100.8,3.22495]
[1738166574348,3.22429,3101.5,3100.7,4.02632]
[1738166574499,3.22429,3101.5,3100.5,0.356]
[1738166574500,0.64911233,3101.6,3101.1,3.22465]
[1738166574699,3.22429,3101.5,3100.9,3.22481]
[1738166574936,3.22429,3101.5,3101.0,3.22476]
[1738166575100,0.64911233,3101.6,3101.1,3.22465]
[1738166575302,3.22432,3101.5,3100.9,3.98661]
[1738166575727,3.22436,3101.4,3100.9,3.98661]
[1738166576243,3.22415,3101.6,3101.0,3.22476]
[1738166576549,3.22433,3101.5,3100.9,3.98661]
[1738166576705,0.8081,3101.5,3100.7,3.98406]
[1738166576897,3.22453,3101.3,3100.7,7.20906]
[1738166577094,3.22453,3101.3,3100.7,3.984]
[1738166577328,6.44907,3101.3,3100.7,3.984]
[1738166577534,3.22453,3101.3,3100.7,3.984]
[1738166577745,7.25673,3101.5,3100.9,3.22481]
[1738166577946,3.2243,3101.5,3100.8,3.22495]
[1738166578148,8.33,3102.2,3101.4,3.22428]
[1738166578149,3.22371,3102.1,3101.4,3.22428]
[1738166578353,0.8218,3102.2,3101.8,3.22392]
[1738166578558,3.22343,3102.3,3101.7,3.22403]
[1738166578759,0.65975324,3102.4,3101.7,3.22394]
[1738166579062,3.22341,3102.3,3101.7,6.44787]
[1738166579361,3.22341,3102.3,3101.7,6.4479]
[1738166579532,3.22341,3102.3,3101.8,3.2239]
[1738166580565,6.4469,3102.3,3101.9,0.05245885]
[1738166580763,6.4469,3102.3,3102.0,0.356]
[1738166580971,3.22353,3102.2,3102.0,0.356]
[1738166581116,3.22353,3102.2,3102.1,0.05232297]
[1738166581564,4.72909932,3102.2,3102.1,0.05232297]
[1738166582967,3.22337,3102.4,3102.1,0.05232297]
[1738166583138,3.22313,3102.6,3102.1,0.82682297]
[1738166584136,6.44631,3102.6,3102.1,4.05043297]
[1738166584335,3.22326,3102.5,3102.1,0.82682297]
[1738166584634,3.22313,3102.6,3102.1,4.49105027]
[1738166584847,0.63127143,3102.5,3102.1,4.49105027]
[1738166585481,3.22313,3102.6,3102.1,4.49105027]
[1738166585784,3.86639617,3102.6,3102.1,1.26748027]
[1738166585991,3.86639617,3102.6,3102.1,0.05232297]
[1738166585992,3.22351,3102.2,3102.1,0.05232297]
[1738166586293,3.26380475,3102.2,3102.1,0.05232297]
[1738166586586,3.2241,3101.7,3101.2,0.356]
[1738166586941,3.22426,3101.5,3101.2,0.356]
[1738166587486,3.2244,3101.4,3101.2,0.356]
[1738166587989,3.22455,3101.2,3101.1,2.909]
[1738166588167,3.2244,3101.4,3101.1,2.909]
[1738166588371,3.98907,3101.6,3101.1,2.909]
[1738166588570,3.22417,3101.6,3101.1,2.909]
[1738166588935,6.4484,3101.6,3101.1,6.13358]
[1738166589085,6.4484,3101.6,3101.1,2.909]
[1738166589386,3.22424,3101.5,3101.1,2.909]
[1738166589962,3.22388,3101.9,3101.3,0.8262]
[1738166590168,3.22388,3101.9,3101.4,3.22434]
[1738166591181,3.22364,3102.1,3101.5,3.22418]
[1738166591382,0.7992,3102.6,3101.9,0.8289]
[1738166591587,5.28,3103.6,3102.2,3.2235]
[1738166591588,3.22298,3102.8,3102.2,3.2235]
[1738166591767,3.22298,3102.8,3102.2,3.22344]
[1738166591944,0.65140992,3102.6,3102.3,0.322344]
[1738166592591,0.65140992,3102.6,3102.4,3.22329]
[1738166592810,0.65140992,3102.6,3102.5,0.7895]
[1738166593363,3.22271,3103.0,3102.5,0.7895]
[1738166593557,3.2228,3102.9,3102.5,0.7895]
[1738166594362,0.63238736,3102.8,3102.5,0.7895]
[1738166594589,3.2228,3102.9,3102.5,0.7895]
[1738166594590,3.22228,3103.4,3102.7,3.22299]
[1738166594790,3.22131,3104.4,3102.6,0.03222985]
[1738166594791,0.7555,3103.8,3102.9,0.55]
[1738166594992,3.97745,3103.8,3103.2,3.9772]
[1738166595196,3.97745,3103.8,3103.2,3.97718]
[1738166595410,3.97745,3103.8,3103.3,0.05026649]
[1738166595578,3.22169,3104.0,3103.2,0.7548]
[1738166595777,3.22186,3103.8,3103.3,3.2727629]
[1738166596696,3.22186,3103.8,3103.3,0.0504729]
[1738166596901,3.22169,3104.0,3103.3,3.2728429]
[1738166597058,3.22175,3103.9,3103.3,3.2727729]
[1738166598712,3.22165,3104.0,3103.4,3.2222]
[1738166598863,3.22178,3103.9,3103.4,0.05040503]
[1738166599068,3.22187,3103.8,3103.4,0.05040503]
[1738166599408,3.22157,3104.1,3103.5,0.05033717]
[1738166601200,3.22227,3103.4,3103.1,0.355]
[1738166601378,0.04028152,3103.3,3103.1,0.355]
[1738166601584,3.22227,3103.4,3103.1,0.355]
[1738166601908,6.44423,3103.6,3103.2,0.05004214]
[1738166602110,3.22217,3103.5,3103.2,0.05004214]
[1738166602292,3.22217,3103.5,3103.1,0.355]
[1738166602463,3.22217,3103.5,3103.3,0.04997427]
[1738166602664,3.22217,3103.5,3103.2,0.05004214]
[1738166602901,3.22209,3103.6,3103.2,0.05004214]
[1738166603206,3.22209,3103.6,3103.1,0.355]
[1738166603207,3.22209,3103.6,3103.3,0.04997427]
[1738166603507,0.65411399,3103.8,3103.5,0.7913]
[1738166603818,0.65411399,3103.8,3103.6,0.04977068]
[1738166604769,3.22165,3104.0,3103.6,0.04977068]
[1738166605004,3.22157,3104.1,3103.6,0.04977068]
[1738166606393,3.22181,3103.9,3103.6,0.04977068]
[1738166607373,6.44318,3104.1,3103.6,0.04977068]
[1738166607574,3.22157,3104.1,3103.6,0.04977068]
[1738166608020,3.22157,3104.1,3103.6,3.27181068]
[1738166608219,3.85213942,3104.3,3103.8,3.22184]
[1738166608430,3.22137,3104.3,3103.8,3.22184]
[1738166608715,3.22137,3104.3,3103.9,35.04919812]
[1738166608933,3.22146,3104.2,3103.9,35.04919812]
[1738166610522,3.22144,3104.2,3103.9,35.04919812]
[1738166610880,3.38936254,3104.4,3103.9,35.04919812]
[1738166611192,3.22136,3104.3,3103.9,35.04919812]
[1738166612324,3.38928254,3104.4,3103.9,35.04919812]
[1738166612522,3.38928254,3104.4,3103.9,0.04919812]
[1738166612819,3.38928254,3104.4,3103.9,3.27088812]
[1738166613129,0.16804254,3104.4,3104.0,0.803]
[1738166613333,3.22109,3104.6,3104.1,3.22148]
[1738166613499,3.22109,3104.6,3104.1,3.27011868]
[1738166613844,3.97163,3104.9,3104.3,3.2213]
[1738166614049,3.97163,3104.9,3104.3,3.22125]
[1738166614201,4.04345,3105.6,3104.7,3.22083]
[1738166614403,3.22029,3105.4,3104.8,0.40273846]
[1738166615006,3.22071,3104.9,3104.8,0.40273846]
[1738166615263,3.22071,3104.9,3104.8,0.04773846]
[1738166615422,3.22071,3104.9,3104.5,0.355]
[1738166615622,0.7795,3105.0,3104.5,0.355]
[1738166615623,3.22102,3104.6,3104.5,0.355]
[1738166615945,0.7795,3104.7,3104.0,0.355]
[1738166616102,3.22154,3104.1,3104.0,0.355]
[1738166616298,3.22135,3104.3,3104.0,0.355]
[1738166616554,3.22135,3104.3,3103.8,0.7712]
[1738166616753,3.22135,3104.3,3103.8,1.1262]
[1738166617268,3.2215,3104.2,3103.8,1.1262]
[1738166618766,3.22183,3103.9,3103.7,0.355]
[1738166618960,3.22159,3104.1,3103.7,0.355]
[1738166619320,6.44322,3104.1,3103.7,0.355]
[1738166619548,3.22159,3104.1,3103.7,0.355]
[1738166620411,3.22169,3104.0,3103.7,0.355]